lending/lending_fUSD_20240621
["ID","MTS","AMOUNT","RATE_DAILY","PERIOD"]
[330101048,1718991059859,-500.0,0.00023002,4]
[330101049,1718991059869,-500.0,0.00023002,4]
[330101050,1718991059878,-1769.35,0.00023002,4]
[330101051,1718991059888,-500.0,0.00023002,4]
[330101052,1718991059898,-500.0,0.00023002,4]
[330101053,1718991059907,-500.0,0.00023002,4]
[330101054,1718991059917,-500.0,0.00023002,4]
[330101055,1718991059926,-1112.63,0.00023002,4]
[330101056,1718991059935,-569.56,0.00023002,4]
[330101057,1718991059945,-500.0,0.00023002,4]
[330101058,1718991059954,-500.0,0.00023002,4]
[330101059,1718991059963,-500.0,0.00023002,4]
[330101060,1718991059972,-500.0,0.00023002,4]
[330101061,1718991059982,-500.0,0.00023002,4]
[330101062,1718991059992,-500.0,0.00023002,4]
[330101063,1718991060003,-500.0,0.00023002,4]
[330101064,1718991060013,-758.73,0.00023002,4]
[330101065,1718991060022,-594.05,0.00023002,4]
[330101066,1718991060031,-500.0,0.00023002,4]
[330101067,1718991060041,-1059.07,0.00023002,4]
[330101068,1718991060051,-500.0,0.00023002,4]
[330101069,1718991060060,-500.0,0.00023002,4]
[330101070,1718991060070,-965.65,0.00023002,4]
[330101071,1718991060080,-500.0,0.00023002,4]
[330101072,1718991060089,-906.33,0.00023002,4]
[330101073,1718991060099,-923.38,0.00023002,4]
[330101074,1718991060109,-1038.94,0.00023002,4]
[330101075,1718991060119,-2621.17,0.00023002,4]
[330101076,1718991060128,-500.0,0.00023002,4]
[330101077,1718991060137,-697.22,0.00023002,4]
[330101078,1718991060147,-500.0,0.00023002,4]
[330101079,1718991060157,-500.0,0.00023002,4]
[330101080,1718991060166,-541.10835268,0.00023002,4]
[330101081,1718991060175,-714.72,0.00023002,4]
[330101082,1718991060185,-753.1,0.00023002,4]
[330101083,1718991060195,-1897.24,0.00023002,4]
[330101084,1718991060204,-500.0,0.00023002,4]
[330101085,1718991060214,-500.0,0.00023002,4]
[330101086,1718991060223,-443.68887671,0.00023002,4]
[330101087,1718991060233,-1285.76,0.00023002,4]
[330101088,1718991060243,-422.88875414,0.00023002,4]
[330101089,1718991060256,-500.0,0.00023002,4]
[330101090,1718991060266,-502.33,0.00023002,4]
[330101091,1718991060276,-500.0,0.00023002,4]
[330101092,1718991060286,-534.86,0.00023002,4]
[330101093,1718991060296,-500.0,0.00023002,4]
[330101094,1718991060307,-1041.21,0.00023002,4]
[330101095,1718991060317,-1219.33,0.00023002,4]
[330101096,1718991060327,-721.97,0.00023002,4]
[330101097,1718991060336,-500.0,0.00023002,4]
[330101098,1718991060346,-500.0,0.00023002,4]
[330101099,1718991060355,-500.0,0.00023002,4]
[330101100,1718991060545,-500.0,0.00023002,4]
[330101101,1718991060563,-500.0,0.00023002,4]
[330101102,1718991060573,-773.32,0.00023002,4]
[330101103,1718991060584,-1205.31,0.00023002,4]
[330101104,1718991060594,-500.0,0.00023002,4]
[330101105,1718991060603,-549.09,0.00023002,4]
[330101106,1718991060613,-715.25,0.00023002,4]
[330101107,1718991060623,-500.0,0.00023002,4]
[330101108,1718991060632,-500.0,0.00023002,4]
[330101109,1718991060642,-563.92,0.00023002,4]
[330101110,1718991060652,-500.0,0.00023002,4]
[330101111,1718991060661,-511.29,0.00023002,4]
[330101112,1718991060670,-500.0,0.00023002,4]
[330101113,1718991060680,-234.55127171,0.00023002,4]
[330101114,1718991060690,-939.71,0.00023002,4]
[330101115,1718991060701,-1777.62,0.00023002,4]
[330101116,1718991060711,-500.0,0.00023002,4]
[330101117,1718991060721,-629.80205907,0.00023002,4]
[330101118,1718991060730,-500.0,0.00023002,4]
[330101119,1718991060740,-500.0,0.00023011,4]
[330101120,1718991060750,-778.08,0.00023011,4]
[330101121,1718991060765,-711.57,0.00023011,4]
[330101122,1718991060775,-500.0,0.00023011,4]
[330101123,1718991060785,-500.0,0.00023011,4]
[330101124,1718991060795,-500.0,0.00023011,4]
[330101125,1718991060804,-500.0,0.00023011,4]
[330101126,1718991060814,-811.37,0.00023011,4]
[330101127,1718991060824,-500.0,0.00023011,4]
[330101128,1718991060833,-500.0,0.00023011,4]
[330101129,1718991060843,-1988.28,0.00023011,4]
[330101130,1718991060853,-1545.69,0.00023011,4]
[330101131,1718991060866,-500.0,0.00023011,4]
[330101132,1718991060876,-885.76,0.00023011,4]
[330101133,1718991060887,-846.41,0.00023011,4]
[330101134,1718991060896,-1105.64,0.00023011,4]
[330101135,1718991060906,-1441.35,0.00023011,4]
[330101136,1718991060915,-1115.8,0.00023011,4]
[330101137,1718991060925,-968.43,0.00023011,4]
[330101138,1718991060935,-2726.77,0.00023011,4]
[330101139,1718991060945,-500.0,0.00023011,4]
[330101140,1718991060954,-635.71,0.00023011,4]
[330101141,1718991060964,-500.0,0.00023011,4]
[330101142,1718991060973,-4273.14,0.00023011,4]
[330101143,1718991060984,-3752.39,0.00023011,4]
[330101144,1718991060994,-2270.24,0.00023011,4]
[330101145,1718991061007,-500.0,0.00023011,4]
[330101146,1718991061020,-12849.54,0.00023011,4]
[330101147,1718991061029,-3165.23,0.00023011,4]
[330101148,1718991061038,-847.05,0.00023011,4]
[330101149,1718991061048,-4761.65,0.00023011,4]
[330101150,1718991061057,-2414.13,0.00023011,4]
[330101151,1718991061066,-500.0,0.00023013,4]
[330101152,1718991061075,-500.0,0.00023013,4]
[330101153,1718991061084,-995.64,0.00023013,4]
[330101154,1718991061093,-1025.9,0.00023013,4]
[330101155,1718991061102,-655.96,0.00023013,4]
[330101156,1718991061111,-658.51,0.00023013,4]
[330101157,1718991061120,-531.81,0.00023013,4]
[330101158,1718991061130,-744.26,0.00023013,4]
[330101159,1718991061139,-500.0,0.00023013,4]
[330101160,1718991061149,-500.0,0.00023013,4]
[330101161,1718991061158,-500.0,0.00023013,4]
[330101162,1718991061168,-500.0,0.00023013,4]
[330101163,1718991061178,-742.09,0.00023013,4]
[330101164,1718991061188,-500.0,0.00023013,4]
[330101165,1718991061198,-500.0,0.00023013,4]
[330101166,1718991061207,-788.95,0.00023013,4]
[330101167,1718991061217,-500.0,0.00023013,4]
[330101168,1718991061227,-811.67,0.00023013,4]
[330101169,1718991061236,-576.54,0.00023013,4]
[330101170,1718991061245,-740.11,0.00023013,4]
[330101171,1718991061262,-500.0,0.00023013,4]
[330101172,1718991061272,-532.25,0.00023013,4]
[330101173,1718991061282,-1390.89,0.00023013,4]
[330101174,1718991061292,-500.0,0.00023013,4]
[330101175,1718991061302,-621.86,0.00023013,4]
[330101176,1718991061312,-500.0,0.00023013,4]
[330101177,1718991061322,-500.0,0.00023013,4]
[330101178,1718991061331,-500.0,0.00023013,4]
[330101179,1718991061341,-500.0,0.00023013,4]
[330101180,1718991061351,-500.0,0.00023013,4]
[330101181,1718991061361,-500.0,0.00023013,4]
[330101182,1718991061371,-500.0,0.00023013,4]
[330101183,1718991061381,-729.92,0.00023013,4]
[330101184,1718991061390,-747.87,0.00023013,4]
[330101185,1718991061400,-500.0,0.00023013,4]
[330101186,1718991061410,-809.02,0.00023266,4]
[330101187,1718991061420,-607.62,0.00023266,4]
[330101188,1718991061429,-1381.07,0.00023266,4]
[330101189,1718991061439,-1642.65,0.00023273,4]
[330101190,1718991061448,-500.0,0.00023273,4]
[330101191,1718991061457,-978.25,0.00023273,4]
[330101192,1718991061467,-459.24,0.00023273,4]
[330101193,1718991061476,-2112.55,0.00023274,4]
[330101194,1718991061486,-2228.42,0.00023274,4]
[330101195,1718991061500,-2227.32,0.00023274,4]
[330101196,1718991061516,-1250.08,0.00023274,4]
[330101197,1718991061525,-1964.51,0.00023274,4]
[330101198,1718991061535,-5117.57,0.00023274,4]
[330101199,1718991061545,-4615.24,0.00023274,4]
[330101200,1718991061553,-6593.77,0.00023274,4]
[330101201,1718991061562,-647.06047006,0.00023274,4]
[330101202,1718991061573,-1613.58,0.00023274,4]
[330101203,1718991061583,-4640.51,0.00023274,4]
[330101204,1718991061592,-2613.48,0.00023274,4]
[330101205,1718991061601,-1707.02,0.00023274,4]
[330101206,1718991061610,-6483.65,0.00023274,4]
[330101207,1718991061620,-503.57,0.00023274,4]
[330101208,1718991061629,-701.81,0.00023274,4]
[330101209,1718991061639,-2832.55,0.00023274,4]
[330101210,1718991061649,-2689.75,0.00023274,4]
[330101211,1718991061659,-500.0,0.00023274,4]
[330101212,1718991061670,-2000.06,0.00023274,4]
[330101213,1718991061681,-3251.41,0.00023274,4]
[330101214,1718991061692,-2188.55,0.00023274,4]
[330101215,1718991061703,-2431.29,0.00023274,4]
[330101216,1718991061713,-7810.43,0.00023274,4]
[330101217,1718991061723,-500.0,0.00023274,4]
[330101218,1718991061735,-643.33,0.00023274,4]
[330101219,1718991061746,-3995.39,0.00023274,4]
[330101220,1718991061758,-500.0,0.00023274,4]
[330101221,1718991061767,-3344.75,0.00023274,4]
[330101222,1718991061777,-9018.71,0.00023274,4]
[330101223,1718991061787,-5283.93,0.00023274,4]
[330101224,1718991061797,-2784.89,0.00023274,4]
[330101225,1718991061806,-1033.86,0.00023274,4]
[330101226,1718991061817,-1160.67,0.00023274,4]
[330101227,1718991061827,-2147.09,0.00023274,4]
[330101228,1718991061837,-2161.62,0.00023274,4]
[330101229,1718991061847,-32976.13,0.00023274,4]
[330101230,1718991061858,-3218.08,0.00023274,4]
[330101231,1718991061868,-433446.32900574,0.00023275,4]
[330101232,1718991061878,-500.0,0.00023275,4]
[330101233,1718991061887,-898.14,0.00023275,4]
[330101234,1718991061897,-500.0,0.00023275,4]
[330101235,1718991061907,-1030.59,0.00023275,4]
[330101236,1718991061917,-704.08,0.00023275,4]
[330101237,1718991061928,-500.0,0.00023275,4]
[330101238,1718991061938,-539.94,0.00023275,4]
[330101239,1718991061950,-500.0,0.00023275,4]
[330101240,1718991061961,-500.0,0.00023275,4]
[330101241,1718991061971,-1013.17,0.00023275,4]
[330101242,1718991061981,-500.0,0.00023275,4]
[330101243,1718991061991,-613.35,0.00023275,4]
[330101244,1718991062000,-359.75448099,0.00023275,4]
[330101245,1718991062013,-833.51,0.00023275,4]
[330101246,1718991062022,-840.13,0.00023275,4]
[330101247,1718991062031,-500.0,0.00023275,4]
[330101248,1718991062040,-500.0,0.00023275,4]
[330101249,1718991062049,-500.0,0.00023275,4]
[330101250,1718991062058,-500.0,0.00023275,4]
[330101251,1718991062069,-746.6,0.00023275,4]
[330101252,1718991062079,-500.0,0.00023275,4]
[330101253,1718991062090,-500.0,0.00023275,4]
[330101254,1718991062100,-500.0,0.00023275,4]
[330101255,1718991062109,-500.0,0.00023275,4]
[330101256,1718991062119,-500.0,0.00023275,4]
[330101257,1718991062128,-500.0,0.00023275,4]
[330101258,1718991062137,-567.673136,0.00023275,4]
[330101259,1718991062147,-500.0,0.00023275,4]
[330101260,1718991062156,-500.0,0.00023275,4]
[330101261,1718991062166,-500.0,0.00023275,4]
[330101262,1718991062176,-500.0,0.00023275,4]
[330101263,1718991062186,-500.0,0.00023275,4]
[330101264,1718991062195,-500.0,0.00023275,4]
[330101265,1718991062204,-500.0,0.00023275,4]
[330101266,1718991062214,-500.0,0.00023275,4]
[330101267,1718991062223,-712.07,0.00023275,4]
[330101268,1718991062232,-1108.2,0.00023275,4]
[330101269,1718991062242,-500.0,0.00023275,4]
[330101270,1718991062252,-500.0,0.00023275,4]
[330101271,1718991062268,-511.98,0.00023275,4]
[330101272,1718991062277,-702.16,0.00023275,4]
[330101273,1718991062286,-500.0,0.00023275,4]
[330101274,1718991062296,-700.08,0.00023275,4]
[330101275,1718991062309,-500.0,0.00023275,4]
[330101276,1718991062318,-924.62,0.00023275,4]
[330101277,1718991062327,-500.0,0.00023275,4]
[330101278,1718991062336,-1537.14,0.00023275,4]
[330101279,1718991062345,-500.0,0.00023275,4]
[330101280,1718991062354,-1149.22,0.00023275,4]
[330101281,1718991062363,-500.0,0.00023275,4]
[330101282,1718991062372,-500.0,0.00023275,4]
[330101283,1718991062381,-708.0,0.00023275,4]
[330101284,1718991062390,-500.0,0.00023275,4]
[330101285,1718991062399,-500.0,0.00023275,4]
[330101286,1718991062409,-500.0,0.00023275,4]
[330101287,1718991062418,-500.0,0.00023275,4]
[330101288,1718991062427,-508.25,0.00023275,4]
[330101289,1718991062437,-579.98,0.00023275,4]
[330101290,1718991062446,-571.41,0.00023275,4]
[330101291,1718991062455,-642.8,0.00023275,4]
[330101292,1718991062465,-500.0,0.00023275,4]
[330101293,1718991062475,-668.3,0.00023275,4]
[330101294,1718991062485,-500.0,0.00023275,4]
[330101295,1718991062495,-638.78,0.00023275,4]
[330101296,1718991062516,-726.73,0.00023275,4]
[330101297,1718991062526,-385.72187625,0.00023275,4]
[330101298,1718991062535,-731.34,0.00023275,4]
[330101299,1718991062544,-500.0,0.00023275,4]
[330101300,1718991062554,-934.13,0.00023275,4]
[330101301,1718991062562,-521.3,0.00023275,4]
[330101302,1718991062571,-500.0,0.00023275,4]
[330101303,1718991062582,-500.0,0.00023275,4]
[330101304,1718991062592,-522.48,0.00023275,4]
[330101305,1718991062602,-696.93,0.00023275,4]
[330101306,1718991062611,-837.37,0.00023275,4]
[330101307,1718991062620,-500.0,0.00023275,4]
[330101308,1718991062630,-500.0,0.00023275,4]
[330101309,1718991062639,-1298.27,0.00023275,4]
[330101310,1718991062648,-676.04,0.00023275,4]
[330101311,1718991062658,-500.0,0.00023275,4]
[330101312,1718991062667,-500.0,0.00023275,4]
[330101313,1718991062677,-955.91,0.00023275,4]
[330101314,1718991062686,-565.69,0.00023275,4]
[330101315,1718991062695,-500.0,0.00023275,4]
[330101316,1718991062705,-500.0,0.00023275,4]
[330101317,1718991062716,-434.58,0.00023275,7]
[330101318,1718991063074,-500.0,0.00023275,4]
[330101319,1718991063093,-173.07826324,0.00023275,4]
[330101320,1718991063103,-500.0,0.00023275,4]
[330101321,1718991063113,-1005.8,0.00023275,4]
[330101322,1718991063124,-1487.67,0.00023275,4]
[330101323,1718991063133,-500.0,0.00023275,4]
[330101324,1718991063143,-500.0,0.00023275,4]
[330101325,1718991063154,-500.0,0.00023275,4]
[330101326,1718991063166,-500.0,0.00023275,4]
[330101327,1718991063175,-500.0,0.00023275,4]
[330101328,1718991063186,-1302.06,0.00023275,4]
[330101329,1718991063197,-500.0,0.00023275,4]
[330101330,1718991063207,-500.0,0.00023275,4]
[330101331,1718991063217,-1105.45,0.00023275,4]
[330101332,1718991063226,-500.0,0.00023275,4]
[330101333,1718991063236,-500.0,0.00023275,4]
[330101334,1718991063245,-861.17,0.00023275,4]
[330101335,1718991063258,-500.0,0.00023275,4]
[330101336,1718991063267,-500.0,0.00023275,4]
[330101337,1718991063277,-500.0,0.00023275,4]
[330101338,1718991063287,-500.0,0.00023275,4]
[330101339,1718991063296,-500.0,0.00023275,4]
[330101340,1718991063306,-237.61,0.00023275,4]
[330101341,1718991063315,-500.0,0.00023275,4]
[330101342,1718991063325,-500.0,0.00023275,4]
[330101343,1718991063335,-525.71,0.00023275,4]
[330101344,1718991063344,-500.0,0.00023275,4]
[330101345,1718991063354,-500.0,0.00023275,4]
[330101346,1718991063364,-500.0,0.00023275,4]
[330101347,1718991063374,-500.0,0.00023275,4]
[330101348,1718991063384,-1605.24,0.00023275,4]
[330101349,1718991063393,-1109.1,0.00023275,4]
[330101350,1718991063403,-254.0,0.00023275,4]
[330101351,1718991063412,-500.0,0.00023275,4]
[330101352,1718991063423,-500.0,0.00023275,4]
[330101353,1718991063432,-500.0,0.00023275,4]
[330101354,1718991063441,-812.48,0.00023275,4]
[330101355,1718991063451,-500.0,0.00023275,4]
[330101356,1718991063460,-500.0,0.00023275,4]
[330101357,1718991063469,-522.66,0.00023275,4]
[330101358,1718991063478,-500.0,0.00023275,4]
[330101359,1718991063488,-500.0,0.00023275,4]
[330101360,1718991063501,-500.0,0.00023275,4]
[330101361,1718991063512,-615.47434532,0.00023275,4]
[330101362,1718991063521,-2349.44,0.00023275,4]
[330101363,1718991063530,-542.96,0.00023275,4]
[330101364,1718991063539,-1118.35,0.00023275,4]
[330101365,1718991063549,-500.0,0.00023275,4]
[330101366,1718991063558,-500.0,0.00023275,4]
[330101367,1718991063568,-500.0,0.00023275,4]
[330101368,1718991063579,-500.0,0.00023275,4]
[330101369,1718991063588,-500.0,0.00023275,4]
[330101370,1718991063597,-500.0,0.00023275,4]
[330101371,1718991063606,-1117.24,0.00023275,4]
[330101372,1718991063616,-1118.14,0.00023275,4]
[330101373,1718991063627,-1022.28,0.00023275,4]
[330101374,1718991063637,-500.0,0.00023275,4]
[330101375,1718991063646,-500.0,0.00023275,4]
[330101376,1718991063656,-2155.83,0.00023275,4]
[330101377,1718991063666,-634.94,0.00023275,4]
[330101378,1718991063675,-474.27419342,0.00023275,4]
[330101379,1718991063684,-500.0,0.00023275,4]
[330101380,1718991063694,-1399.02,0.00023275,4]
[330101381,1718991063703,-1150.63,0.00023275,4]
[330101382,1718991063712,-947.93,0.00023275,4]
[330101383,1718991063722,-917.58,0.00023275,4]
[330101384,1718991063731,-500.0,0.00023275,4]
[330101385,1718991063740,-500.0,0.00023275,4]
[330101386,1718991063749,-182.15069814,0.00023275,4]
[330101387,1718991063760,-159.48567515,0.00023275,4]
[330101388,1718991063770,-800.03,0.00023275,4]
[330101389,1718991063779,-910.29,0.00023275,4]
[330101390,1718991063788,-871.28,0.00023275,4]
[330101391,1718991063798,-707.22,0.00023275,4]
[330101392,1718991063808,-721.45,0.00023275,4]
[330101393,1718991063818,-500.0,0.00023275,4]
[330101394,1718991063827,-2952.26,0.00023275,4]
[330101395,1718991063838,-1217.47,0.00023275,4]
[330101396,1718991063848,-609.35,0.00023275,4]
[330101397,1718991063858,-539.26,0.00023275,4]
[330101398,1718991063868,-1243.83,0.00023275,4]
[330101399,1718991063880,-910.08,0.00023275,4]
[330101400,1718991063890,-2065.38,0.00023275,4]
[330101401,1718991063900,-2397.68,0.00023275,4]
[330101402,1718991063910,-679.24,0.00023275,4]
[330101403,1718991063920,-1399.75,0.00023275,4]
[330101404,1718991063931,-700.96,0.00023275,4]
[330101405,1718991063940,-240.69454597,0.00023275,4]
[330101406,1718991063949,-150.04478936,0.00023275,4]
[330101407,1718991063959,-2171.32,0.00023275,4]
[330101408,1718991063970,-500.0,0.00023275,4]
[330101409,1718991063979,-639.07,0.00023275,4]
[330101410,1718991063990,-640.29,0.00023275,4]
[330101411,1718991063999,-500.0,0.00023275,4]
[330101412,1718991064011,-2562.05,0.00023275,4]
[330101413,1718991064020,-500.0,0.00023275,4]
[330101414,1718991064030,-1478.18,0.00023275,4]
[330101415,1718991064039,-500.0,0.00023275,4]
[330101416,1718991064048,-531.96,0.00023275,4]
[330101417,1718991064058,-1171.77,0.00023275,4]
[330101418,1718991064067,-688.59,0.00023275,4]
[330101419,1718991064077,-500.0,0.00023275,4]
[330101420,1718991064086,-500.0,0.00023275,4]
[330101421,1718991064096,-1272.01,0.00023275,4]
[330101422,1718991064105,-500.0,0.00023275,4]
[330101423,1718991064115,-2945.36,0.00023275,4]
[330101424,1718991064124,-340.82615444,0.00023275,4]
[330101425,1718991064134,-500.0,0.00023275,4]
[330101426,1718991064143,-1467.19,0.00023275,4]
[330101427,1718991064153,-710.57,0.00023275,4]
[330101428,1718991064162,-661.54,0.00023275,4]
[330101429,1718991064171,-500.0,0.00023275,4]
[330101430,1718991064181,-629.62,0.00023275,4]
[330101431,1718991064191,-3697.34,0.00023275,4]
[330101432,1718991064200,-655.01,0.00023275,4]
[330101433,1718991064210,-500.0,0.00023275,4]
[330101434,1718991064219,-694.0,0.00023275,4]
[330101435,1718991064229,-500.0,0.00023275,4]
[330101436,1718991064239,-22390.58,0.00023275,4]
[330101437,1718991064248,-500.0,0.00023275,4]
[330101438,1718991064259,-2889.89,0.00023275,4]
[330101439,1718991064268,-1093.35,0.00023275,4]
[330101440,1718991064278,-500.0,0.00023275,4]
[330101441,1718991064288,-500.0,0.00023275,4]
[330101442,1718991064297,-500.0,0.00023275,4]
[330101443,1718991064307,-2343.28,0.00023275,4]
[330101444,1718991064317,-694.8,0.00023275,4]
[330101445,1718991064327,-1540.92,0.00023275,4]
[330101446,1718991064336,-735.45,0.00023275,4]
[330101447,1718991064345,-500.0,0.00023275,4]
[330101448,1718991064355,-1058.1,0.00023275,4]
[330101449,1718991064364,-1944.21,0.00023275,4]
[330101450,1718991064374,-1428.73,0.00023275,4]
[330101451,1718991064383,-500.0,0.00023275,4]
[330101452,1718991064392,-733.12,0.00023275,4]
[330101453,1718991064401,-500.0,0.00023275,4]
[330101454,1718991064411,-818.18,0.00023275,4]
[330101455,1718991064420,-500.0,0.00023275,4]
[330101456,1718991064430,-849.22,0.00023275,4]
[330101457,1718991064439,-500.0,0.00023275,4]
[330101458,1718991064449,-991.48,0.00023275,4]
[330101459,1718991064458,-500.0,0.00023275,4]
[330101460,1718991064468,-1606.1,0.00023275,4]
[330101461,1718991064479,-804.03,0.00023275,4]
[330101462,1718991064489,-994.93,0.00023275,4]
[330101463,1718991064499,-500.0,0.00023275,4]
[330101464,1718991064517,-500.0,0.00023275,4]
[330101465,1718991064527,-2297.03,0.00023275,4]
[330101466,1718991064537,-500.0,0.00023275,4]
[330101467,1718991064547,-637.26,0.00023275,4]
[330101468,1718991064557,-718.56,0.00023275,4]
[330101469,1718991064567,-928.11,0.00023275,4]
[330101470,1718991064577,-1655.79,0.00023275,4]
[330101471,1718991064589,-1537.71,0.00023275,4]
[330101472,1718991064600,-500.0,0.00023275,4]
[330101473,1718991064611,-604.61,0.00023275,4]
[330101474,1718991064620,-500.0,0.00023275,4]
[330101475,1718991064630,-500.0,0.00023275,4]
[330101476,1718991064640,-1222.36,0.00023275,4]
[330101477,1718991064649,-908.98,0.00023275,4]
[330101478,1718991064659,-668.91,0.00023275,4]
[330101479,1718991064669,-533.73,0.00023275,4]
[330101480,1718991064680,-503.92857738,0.00023275,4]
[330101481,1718991064689,-500.0,0.00023275,4]
[330101482,1718991064699,-1075.97,0.00023275,4]
[330101483,1718991064708,-1495.2,0.00023275,4]
[330101484,1718991064719,-772.88,0.00023275,4]
[330101485,1718991064728,-500.0,0.00023275,4]
[330101486,1718991064738,-1743.39,0.00023275,4]
[330101487,1718991064748,-1365.42,0.00023275,4]
[330101488,1718991064757,-1024.61,0.00023275,4]
[330101489,1718991064768,-500.0,0.00023275,4]
[330101490,1718991064778,-1677.55,0.00023275,4]
[330101491,1718991064788,-791.26,0.00023275,4]
[330101492,1718991064797,-500.0,0.00023275,4]
[330101493,1718991064807,-500.0,0.00023275,4]
[330101494,1718991064816,-1917.92,0.00023275,4]
[330101495,1718991064826,-500.0,0.00023275,4]
[330101496,1718991064837,-821.89,0.00023275,4]
[330101497,1718991064847,-641.92,0.00023275,4]
[330101498,1718991064857,-500.0,0.00023275,4]
[330101499,1718991064866,-2715.91,0.00023275,4]
[330101500,1718991064875,-2232.82,0.00023275,4]
[330101501,1718991064884,-500.0,0.00023275,4]
[330101502,1718991064894,-595.1,0.00023275,4]
[330101503,1718991064903,-617.81644125,0.00023275,4]
[330101504,1718991064912,-3946.49,0.00023275,4]
[330101505,1718991064922,-500.0,0.00023275,4]
[330101506,1718991064931,-686.32,0.00023275,4]
[330101507,1718991064941,-585.07279324,0.00023275,4]
[330101508,1718991064951,-500.0,0.00023276,4]
[330101509,1718991064960,-250.0,0.00023276,4]
[330101510,1718991064970,-500.0,0.00023276,4]
[330101511,1718991064979,-500.0,0.00023276,4]
[330101512,1718991064989,-500.0,0.00023276,4]
[330101513,1718991064999,-498.55043632,0.00023276,4]
[330101514,1718991065010,-523.27,0.00023276,4]
[330101515,1718991065020,-500.0,0.00023276,4]
[330101516,1718991065030,-500.0,0.00023276,4]
[330101517,1718991065039,-500.0,0.00023276,4]
[330101518,1718991065049,-795.26,0.00023276,4]
[330101519,1718991065058,-500.0,0.00023276,4]
[330101520,1718991065067,-706.08,0.00023276,4]
[330101521,1718991065076,-700.27,0.00023276,4]
[330101522,1718991065086,-500.0,0.00023276,4]
[330101523,1718991065096,-500.0,0.00023276,4]
[330101524,1718991065105,-500.0,0.00023276,4]
[330101525,1718991065115,-500.0,0.00023276,4]
[330101526,1718991065125,-822.98,0.00023276,4]
[330101527,1718991065134,-505.18271551,0.00023276,4]
[330101528,1718991065144,-510.29,0.00023276,4]
[330101529,1718991065153,-526.66,0.00023276,4]
[330101530,1718991065162,-500.0,0.00023276,4]
[330101531,1718991065171,-500.0,0.00023276,4]
[330101532,1718991065180,-594.66,0.00023276,4]
[330101533,1718991065190,-500.0,0.00023276,4]
[330101534,1718991065200,-500.0,0.00023276,4]
[330101535,1718991065209,-500.0,0.00023276,4]
[330101536,1718991065219,-523.22,0.00023276,4]
[330101537,1718991065230,-603.76,0.00023276,4]
[330101538,1718991065239,-500.0,0.00023276,4]
[330101539,1718991065248,-500.0,0.00023276,4]
[330101540,1718991065260,-500.0,0.00023276,4]
[330101541,1718991065270,-374.23586369,0.00023276,4]
[330101542,1718991065280,-500.0,0.00023276,4]
[330101543,1718991065289,-500.0,0.00023276,4]
[330101544,1718991065299,-500.0,0.00023276,4]
[330101545,1718991065309,-500.0,0.00023276,4]
[330101546,1718991065318,-753.57,0.00023276,4]
[330101547,1718991065327,-500.0,0.00023276,4]